[Event "13th Poti Nana Aleksandria Cup"]
[Site "Poti"]
[Date "2018.07.19"]
[Round "8"]
[White "Der Manuelian, Haik"]
[Black "Sattarov, Bobir"]
[Result "1/2-1/2"]
[ECO "C92"]
[WhiteElo "2242"]
[BlackElo "2328"]
[Annotator "NA"]
[PlyCount "123"]
[EventDate "2018.07.13"]
[EventType "swiss"]
[EventCountry "GEO"]
[SourceTitle "playchess.com"]
[Source "ChessBase"]
[SourceQuality "1"]
[TimeControl "40/5400+30:1800+30"]

1. e4 {[%emt 0:00:00]} e5 {[%emt 0:00:00]} 2. Nf3 {[%emt 0:00:00]} Nc6 {[%emt 0:00:17]} 3. Bb5 {[%emt 0:00:00]} a6 {[%emt 0:00:23]} 4. Ba4 {[%emt 0:00:00]} Nf6 {[%emt 0:03:39]} 5. O-O {[%emt 0:00:00]} Be7 {[%emt 0:00:04]} 6. Re1 {[%emt 0:00:03]} b5 {[%emt 0:00:11]} 7. Bb3 {[%emt 0:00:04]} d6 {[%emt 0:00:05]} 8. c3 {[%emt 0:00:03]} O-O {[%emt 0:00:05]} 9. h3 {[%emt 0:00:02]} Bb7 {[%emt 0:00:05]} 10. d4 {[%emt 0:00:50]} Re8 {[%emt 0:00:02]} 11. Nbd2 {[%emt 0:00:36]} Bf8 {[%emt 0:00:02]} 12. a4 {[%emt 0:02:39]} h6 {[%emt 0:04:25]} 13. Bc2 {[%emt 0:03:22]} exd4 {[%emt 0:03:09]} 14. cxd4 {[%emt 0:00:31]} Nb4 {[%emt 0:00:08]} 15. Bb1 {[%emt 0:00:35]} c5 {[%emt 0:00:06]} 16. d5 {[%emt 0:01:05]} Nd7 {[%emt 0:00:53]} 17. Ra3 {[%emt 0:01:13]} c4 {[%emt 0:11:27]} 18. Nd4 {[%emt 0:06:15]} Ne5 {[%emt 0:12:09]} (18... Qf6 $5 {[%cal Rf6d4]} 19. N2f3 Nc5 $11) 19. axb5 {[%emt 0:10:05]} axb5 {[%emt 0:01:36]} 20. Rxa8 $11 {[%emt 0:08:15] LiveBook: 18 Games} Qxa8 {[%emt 0:01:58]} 21. Nxb5 {[%emt 0:03:03]} Qa5 {[%emt 0:01:05]} 22. Nc3 {[%emt 0:07:42]} Ra8 {[%emt 0:00:59]} 23. Re3 {[%emt 0:04:52]} Ba6 {[%emt 0:09:20]} 24. Rg3 {[%emt 0:12:38]} g6 {[%emt 0:13:56]} 25. h4 {[%emt 0:05:09]} Nbd3 {[%emt 0:04:33]} 26. Nf1 {[%emt 0:14:54]} Qb6 {[%emt 0:03:58]} 27. Ne3 {[%emt 0:01:37]} h5 {[%emt 0:04:41]} 28. Qc2 {[%emt 0:08:47]} Bg7 {[%emt 0:01:42]} 29. Ncd1 {[%emt 0:03:58]} Kf8 {[%emt 0:09:35]} 30. Bd2 {[%emt 0:01:04]} Bf6 {[%emt 0:00:27]} 31. Bc3 {[%emt 0:01:50]} Bxh4 {[%emt 0:01:11]} 32. Rh3 {[%emt 0:00:01]} Bg5 {[%emt 0:00:23]} 33. g3 {[%emt 0:02:07]} Re8 {[%emt 0:07:11]} 34. Qe2 {[%emt 0:00:48]} Bc8 {[%emt 0:00:01]} 35. Rh1 {[%emt 0:00:17]} Nc1 {[%emt 0:04:01]} 36. Qf1 {[%emt 0:01:02]} Ba6 {[%emt 0:02:54]} 37. Kg2 {[%emt 0:00:19]} Ned3 {[%emt 0:00:30]} 38. f4 {[%emt 0:01:04]} Bd8 {[%emt 0:00:08]} 39. Qf3 {[%emt 0:00:49]} Nb3 {[%emt 0:01:20]} 40. Bxd3 {[%emt 0:00:00]} cxd3 {[%emt 0:00:00]} 41. f5 {[%emt 0:06:32]} Nd4 {[%emt 0:05:01]} 42. Bxd4 {[%emt 0:14:35]} Qxd4 {[%emt 0:00:04]} 43. fxg6 {[%emt 0:00:06]} Qxe4 {[%emt 0:00:16]} 44. Rxh5 {[%emt 0:04:52]} Qxf3+ {[%emt 0:05:20]} 45. Kxf3 {[%emt 0:00:02]} fxg6 {[%emt 0:00:10]} 46. Rh8+ {[%emt 0:00:02]} Kf7 {[%emt 0:00:07]} 47. Rxe8 {[%emt 0:00:07]} Kxe8 {[%emt 0:00:01]} 48. b3 {[%emt 0:02:45]} Ba5 {[%emt 0:07:26]} 49. Nb2 {[%emt 0:04:49]} Bb4 {[%emt 0:01:25]} 50. Nbc4 {[%emt 0:00:48]} Ke7 {[%emt 0:00:36]} 51. Ke4 {[%emt 0:01:33]} d2 {[%emt 0:00:01]} 52. Kd3 {[%emt 0:00:21]} Kf6 {[%emt 0:00:30]} 53. Kc2 {[%emt 0:00:18]} Bxc4 {[%emt 0:05:08]} 54. Nxc4 {[%emt 0:00:14]} Kf5 {[%emt 0:00:01]} 55. Nxd2 {[%emt 0:00:27]} Ke5 {[%emt 0:00:01]} 56. Kd3 {[%emt 0:01:15]} Kxd5 {[%emt 0:00:01]} 57. Nf3 {[%emt 0:00:20]} Ke6 {[%emt 0:05:44]} 58. g4 {[%emt 0:00:59]} Ba3 {[%emt 0:00:30]} 59. Ke4 {[%emt 0:00:27]} Bc5 {[%emt 0:01:35]} 60. Ng5+ {[%emt 0:00:20]} Kf6 {[%emt 0:00:13]} 61. Nf3 {[%emt 0:00:01]} Ke6 {[%emt 0:00:36]} 62. Ng5+ 1/2-1/2

[Event "13th Poti Nana Aleksandria Cup"]
[Site "Poti"]
[Date "2018.07.19"]
[Round "8"]
[White "Ghvamberia, Nika"]
[Black "Arabidze, Meri"]
[Result "1/2-1/2"]
[ECO "B46"]
[WhiteElo "2236"]
[BlackElo "2397"]
[Annotator "NA"]
[PlyCount "123"]
[EventDate "2018.07.13"]
[EventType "swiss"]
[EventCountry "GEO"]
[SourceTitle "playchess.com"]
[Source "ChessBase"]
[SourceQuality "1"]
[TimeControl "40/5400+30:1800+30"]

1. e4 {[%emt 0:00:00]} c5 {[%emt 0:00:00]} 2. Nf3 {[%emt 0:00:00]} e6 {[%emt 0:00:00]} 3. d4 {[%emt 0:00:00]} cxd4 {[%emt 0:00:00]} 4. Nxd4 {[%emt 0:00:03]} Nc6 {[%emt 0:00:00] LiveBook: 24426 Games} 5. Nc3 {[%emt 0:00:14]} a6 {[%emt 0:00:11]} 6. Nxc6 {[%emt 0:00:28]} bxc6 {[%emt 0:00:21]} 7. Bd3 {[%emt 0:00:04]} d5 {[%emt 0:00:56]} 8. O-O {[%emt 0:00:10]} Nf6 {[%emt 0:00:03]} 9. Re1 {[%emt 0:00:48]} Bb7 {[%emt 0:00:13]} 10. e5 {[%emt 0:07:48] B46: Sicilian: Taimanov: 5 Nc3 a6} Nd7 {[%emt 0:00:05]} 11. Qg4 {[%emt 0:03:59]} (11. Na4 Qc7 12. Qe2 c5 13. c4 d4 14. b3 Be7 15. Bf4 O-O 16. Bg3 a5 17. f4 Qc6 18. Qc2 g6 19. Nb2 {0-1 (39) Sanal,V (2533)-Berkes,F (2654) Minsk 2017}) 11... Qc7 {[%emt 0:03:24]} 12. Bf4 {[%emt 0:04:25]} c5 $146 {[%emt 0:04:42]} ({Predecessor:} 12... g6 13. Na4 c5 14. c4 d4 15. h4 Rc8 16. b3 h6 17. Nb2 Nb8 {0-1 (49) Zsirai,P (2195)-Tutisani,N (1978) Maribor 2012}) 13. b3 {[%emt 0:05:07]} g6 {[%emt 0:04:11]} 14. h4 {[%emt 0:06:50]} h5 {[%emt 0:02:46]} 15. Qg3 {[%emt 0:02:46]} Rg8 {[%emt 0:02:57]} (15... Be7 $11 {keeps the balance.}) 16. Na4 {[%emt 0:03:48]} (16. Nb1 $16) 16... Be7 {[%emt 0:05:41]} 17. c4 {[%emt 0:08:42]} d4 {[%emt 0:01:04]} 18. Be4 {[%emt 0:06:59]} Rb8 {[%emt 0:09:54]} 19. Nb2 {[%emt 0:02:20]} Qd8 {[%emt 0:08:17]} 20. Bxb7 {[%emt 0:04:29]} Rxb7 {[%emt 0:00:07]} 21. Bg5 {[%emt 0:00:05]} Bxg5 {[%emt 0:05:17]} 22. hxg5 {[%emt 0:02:43]} Qc7 {[%emt 0:02:58]} 23. Nd3 {[%emt 0:01:48]} a5 {[%emt 0:01:00]} 24. Rab1 {[%emt 0:01:59]} Ke7 {[%emt 0:01:44]} 25. Qf4 {[%emt 0:06:14]} Rgb8 {[%emt 0:03:22]} 26. Nb2 {[%emt 0:02:54]} Ke8 {[%emt 0:07:30]} 27. Rbd1 {[%emt 0:01:18]} Nb6 {[%emt 0:06:43]} 28. Nd3 {[%emt 0:05:45]} Qe7 {[%emt 0:05:06]} 29. Rc1 {[%emt 0:14:00]} Rc7 {[%emt 0:04:09]} 30. Rb1 {[%emt 0:02:37]} Nc8 {[%emt 0:04:39]} 31. Qd2 {[%emt 0:01:56]} Ra7 {[%emt 0:00:35]} 32. Rec1 {[%emt 0:00:54]} Qc7 {[%emt 0:02:19]} 33. Qf4 {[%emt 0:00:35]} Ne7 {[%emt 0:06:08]} 34. Qf6 {[%emt 0:01:23]} Nf5 {[%emt 0:00:20]} 35. Qh8+ {[%emt 0:00:42]} Ke7 {[%emt 0:00:49]} 36. Qf6+ {[%emt 0:00:02]} Ke8 {[%emt 0:00:11]} 37. Qh8+ {[%emt 0:00:02]} Kd7 {[%emt 0:03:24]} 38. Qf6 {[%emt 0:00:01]} Kc6 {[%emt 0:03:01]} 39. a3 {[%emt 0:01:09]} Rab7 {[%emt 0:00:48]} 40. b4 {[%emt 0:00:00]} axb4 {[%emt 0:00:00]} 41. axb4 {[%emt 0:02:02]} cxb4 {[%emt 0:01:17]} 42. Rb3 {[%emt 0:03:44]} Qe7 $11 {[%emt 0:10:54]} 43. Qxe7 {[%emt 0:10:28]} Nxe7 {[%emt 0:01:27]} 44. Ra1 {[%emt 0:00:07]} Rc7 {[%emt 0:10:02]} 45. Ra4 {[%emt 0:03:39]} Kd7 {[%emt 0:03:05]} 46. Rbxb4 {[%emt 0:01:18]} Rxb4 {[%emt 0:00:45]} 47. Rxb4 {[%emt 0:00:05]} Ra7 {[%emt 0:00:19]} 48. Kf1 {[%emt 0:00:39]} Kc7 {[%emt 0:01:35]} 49. Ke2 {[%emt 0:03:38]} Nc6 {[%emt 0:01:35]} 50. Rb5 {[%emt 0:04:22]} Ra3 {[%emt 0:00:13]} 51. g3 {[%emt 0:02:49]} Rc3 {[%emt 0:01:34]} 52. c5 {[%emt 0:00:25]} Ra3 {[%emt 0:01:07]} 53. Rb2 {[%emt 0:00:29]} Rc3 {[%emt 0:01:56]} 54. Rb5 {[%emt 0:00:47]} Ra3 {[%emt 0:02:36]} 55. Rb2 {[%emt 0:00:07]} Ne7 {[%emt 0:00:17]} 56. Rb4 {[%emt 0:00:52]} Nc6 {[%emt 0:02:27]} 57. Rb2 {[%emt 0:00:09]} Na5 {[%emt 0:00:20]} 58. Rb4 {[%emt 0:02:54]} Nc6 {[%emt 0:01:10]} 59. Rb2 {[%emt 0:00:01]} Rc3 {[%emt 0:00:37]} 60. Rb5 {[%emt 0:00:07]} Ra3 {[%emt 0:01:07]} 61. Rb2 {[%emt 0:00:02]} Rc3 {[%emt 0:00:16]} 62. Rb5 1/2-1/2

[Event "13th Poti Nana Aleksandria Cup"]
[Site "Poti"]
[Date "2018.07.19"]
[Round "8"]
[White "Poormosavi, Seyed Kian"]
[Black "Matsenko, Vadim"]
[Result "1/2-1/2"]
[ECO "B40"]
[WhiteElo "2221"]
[BlackElo "2106"]
[Annotator "NA"]
[PlyCount "120"]
[EventDate "2018.07.13"]
[EventType "swiss"]
[EventCountry "GEO"]
[SourceTitle "playchess.com"]
[Source "ChessBase"]
[SourceQuality "1"]
[TimeControl "40/5400+30:1800+30"]

1. e4 {[%emt 0:00:00]} c5 {[%emt 0:00:00]} 2. Nf3 {[%emt 0:00:00]} e6 {[%emt 0:00:50]} 3. c4 {[%emt 0:00:41]} Nc6 {[%emt 0:01:00]} 4. Nc3 {[%emt 0:00:06]} Nf6 {[%emt 0:00:55]} 5. Be2 {[%emt 0:00:21]} a6 {[%emt 0:01:33]} 6. O-O {[%emt 0:00:22]} Qc7 {[%emt 0:01:01]} 7. d4 {[%emt 0:01:14]} cxd4 {[%emt 0:00:13]} 8. Nxd4 {[%emt 0:00:10]} Nxd4 {[%emt 0:00:31]} 9. Qxd4 {[%emt 0:00:04]} Bc5 {[%emt 0:00:12]} 10. Qd3 {[%emt 0:01:02]} O-O {[%emt 0:00:11] B41: Sicilian: Kan Variation: 5 c4} 11. a3 {[%emt 0:05:50]} (11. Kh1 Be7 12. f4 d6 13. f5 Nd7 14. Qg3 Ne5 15. f6 Bxf6 16. Rxf6 Kh8 17. Rf1 Nxc4 18. Bxc4 Qxc4 19. Bg5 b5 20. Be7 Rg8 21. Rxf7 b4 22. Bf8 Qd4 23. Rd1 Qe5 24. Bxg7+ {1-0 (24) Moiseenko,V (2528)-Ladva,O (2513) St Petersburg 2016}) 11... Be7 {[%emt 0:02:06]} 12. Rd1 {[%emt 0:02:32]} b6 {[%emt 0:01:32]} 13. Be3 {[%emt 0:01:42]} Bb7 {[%emt 0:00:19]} 14. f3 {[%emt 0:01:05]} d6 {[%emt 0:00:08]} 15. Rac1 {[%emt 0:00:34]} Nd7 $146 {[%emt 0:01:34]} ({Predecessor:} 15... Rab8) 16. b4 {[%emt 0:00:36]} Rfd8 {[%emt 0:05:19]} 17. Bf1 {[%emt 0:04:09]} Rac8 {[%emt 0:00:11]} 18. Qd2 {[%emt 0:01:22]} Qb8 {[%emt 0:08:58]} 19. Qf2 {[%emt 0:00:47]} Bc6 {[%emt 0:00:40]} 20. h3 {[%emt 0:21:35]} Bf6 {[%emt 0:08:48]} 21. c5 {[%emt 0:11:23]} dxc5 {[%emt 0:07:18]} 22. Bxa6 {[%emt 0:00:18]} Rc7 {[%emt 0:32:08]} 23. Nb5 {[%emt 0:05:44]} Bxb5 {[%emt 0:01:24]} 24. Bxb5 {[%emt 0:00:03]} cxb4 {[%emt 0:05:42]} 25. axb4 {[%emt 0:01:18]} Rxc1 {[%emt 0:00:23]} 26. Rxc1 {[%emt 0:00:21]} Qd6 {[%emt 0:01:40]} 27. Bxd7 {[%emt 0:08:25]} Rxd7 {[%emt 0:04:46]} 28. Bxb6 {[%emt 0:00:21]} h6 {[%emt 0:00:05]} 29. Bc5 {[%emt 0:03:57]} Qa6 {[%emt 0:02:59]} 30. Qc2 {[%emt 0:03:15]} Bg5 {[%emt 0:03:09]} 31. Rd1 {[%emt 0:01:13]} Rb7 {[%emt 0:00:36]} 32. e5 {[%emt 0:00:47]} Rb8 {[%emt 0:01:07]} 33. Rd7 {[%emt 0:05:37]} Qa1+ {[%emt 0:00:43]} 34. Kh2 {[%emt 0:08:00]} Qxe5+ {[%emt 0:03:42]} 35. g3 {[%emt 0:00:11]} Qa1 {[%emt 0:01:55]} 36. Ra7 {[%emt 0:02:21]} Qf1 {[%emt 0:00:31]} 37. f4 {[%emt 0:03:30]} Bf6 {[%emt 0:00:08]} 38. Qg2 {[%emt 0:00:17]} Qc4 {[%emt 0:01:39]} 39. Ra8 {[%emt 0:04:22]} Rxa8 {[%emt 0:00:12]} 40. Qxa8+ {[%emt 0:00:00]} Kh7 {[%emt 0:00:00]} 41. Qg2 {[%emt 0:00:22]} e5 {[%emt 0:03:27]} 42. fxe5 {[%emt 0:03:07]} Bxe5 {[%emt 0:00:05]} 43. Qf2 {[%emt 0:01:26]} Kg6 {[%emt 0:03:15]} 44. Kg2 {[%emt 0:01:04]} f5 {[%emt 0:02:01]} 45. h4 $11 {[%emt 0:06:19]} h5 {[%emt 0:08:00]} 46. Qe3 {[%emt 0:02:13]} Qd5+ {[%emt 0:01:36]} 47. Kh2 {[%emt 0:01:28]} Kh7 {[%emt 0:03:50]} 48. b5 {[%emt 0:00:56]} f4 {[%emt 0:01:04]} 49. gxf4 {[%emt 0:00:56]} Bxf4+ {[%emt 0:00:05]} 50. Qxf4 {[%emt 0:00:05]} Qxc5 {[%emt 0:00:03]} 51. Qe4+ {[%emt 0:02:05]} g6 {[%emt 0:00:33]} 52. Qb7+ {[%emt 0:06:47]} Kh6 {[%emt 0:01:05]} 53. b6 {[%emt 0:00:09]} Qf2+ {[%emt 0:00:17]} 54. Kh3 {[%emt 0:00:11]} Qe3+ {[%emt 0:00:10]} 55. Kg2 {[%emt 0:00:29]} Qe2+ {[%emt 0:00:04]} 56. Kg1 {[%emt 0:00:56]} Qe1+ {[%emt 0:00:14]} 57. Kh2 {[%emt 0:00:36]} Qf2+ {[%emt 0:00:21]} 58. Kh3 {[%emt 0:00:31]} Qe3+ {[%emt 0:00:06]} 59. Kg2 {[%emt 0:00:31]} Qe2+ {[%emt 0:00:05]} 60. Kg3 {[%emt 0:00:09]} Qe3+ {[%emt 0:00:07]} 1/2-1/2

[Event "13th Poti Nana Aleksandria Cup"]
[Site "Poti"]
[Date "2018.07.19"]
[Round "8"]
[White "Pshmahov, Osman"]
[Black "Bibilashvili, Lali"]
[Result "1-0"]
[ECO "B15"]
[WhiteElo "2136"]
[BlackElo "1816"]
[Annotator "NA"]
[PlyCount "93"]
[EventDate "2018.07.13"]
[EventType "swiss"]
[EventCountry "GEO"]
[SourceTitle "playchess.com"]
[Source "ChessBase"]
[SourceQuality "1"]
[TimeControl "40/5400+30:1800+30"]

1. e4 {[%emt 0:00:00]} c6 {[%emt 0:08:15]} 2. Nc3 {[%emt 0:00:00]} d5 {[%emt 0:00:04]} 3. d4 {[%emt 0:00:01]} dxe4 {[%emt 0:00:03]} 4. Nxe4 {[%emt 0:00:05]} Nf6 {[%emt 0:00:08]} 5. Ng3 {[%emt 0:02:54]} h5 {[%emt 0:05:51]} 6. h4 {[%emt 0:04:43]} Bg4 {[%emt 0:00:38]} 7. f3 {[%emt 0:01:57]} Qc7 {[%emt 0:00:00]} 8. N1e2 {[%emt 0:00:17]} Bd7 {[%emt 0:01:20]} 9. Bf4 {[%emt 0:00:15]} Qb6 {[%emt 0:01:03]} 10. c3 {[%emt 0:03:25]} Nd5 {[%emt 0:02:55]} 11. Qd2 {[%emt 0:02:42]} Na6 {[%emt 0:05:14]} 12. Ne4 {[%emt 0:02:28]} O-O-O {[%emt 0:01:02]} 13. Ng5 {[%emt 0:16:06]} Be8 {[%emt 0:08:04]} 14. Bh2 {[%emt 0:00:52]} e6 $14 {[%emt 0:04:17]} (14... e5 $5) 15. Ne4 {[%emt 0:07:19]} Be7 {[%emt 0:10:51]} 16. O-O-O {[%emt 0:08:24]} Nf6 {[%emt 0:11:55]} 17. N2g3 {[%emt 0:03:59]} Nc7 {[%emt 0:07:35]} 18. Nxf6 {[%emt 0:00:59]} gxf6 {[%emt 0:02:32]} 19. Bc4 {[%emt 0:03:07]} f5 {[%emt 0:05:14]} 20. Ne2 {[%emt 0:01:57]} Bd6 {[%emt 0:03:46]} 21. Bxd6 {[%emt 0:01:50]} Rxd6 {[%emt 0:00:03]} 22. Qf4 {[%emt 0:00:19]} Rd8 {[%emt 0:00:08]} 23. Qe5 {[%emt 0:00:24]} Rg8 {[%emt 0:00:11]} 24. Nf4 {[%emt 0:00:26]} Nd5 {[%emt 0:02:32]} 25. Bxd5 {[%emt 0:00:37]} cxd5 {[%emt 0:00:11]} 26. Rd2 {[%emt 0:00:22]} Bb5 {[%emt 0:02:09]} 27. Nxh5 {[%emt 0:01:27]} Qa5 {[%emt 0:01:12]} 28. b3 {[%emt 0:06:41]} b6 {[%emt 0:01:54]} 29. Kb2 {[%emt 0:00:24]} Kb7 {[%emt 0:00:05]} 30. a4 {[%emt 0:04:06]} Bd7 {[%emt 0:03:30]} 31. Ra1 {[%emt 0:01:51]} Rc8 {[%emt 0:01:07]} 32. b4 {[%emt 0:08:45]} Qa6 {[%emt 0:00:05]} 33. Nf6 Qc4 34. Ra3 {[%emt 0:06:04]} Rgd8 {[%emt 0:01:50]} 35. h5 {[%emt 0:04:08]} Bxa4 {[%emt 0:02:34]} 36. h6 {[%emt 0:02:02]} a5 {[%emt 0:00:25]} 37. bxa5 {[%emt 0:00:59]} bxa5 {[%emt 0:00:32]} 38. Qe2 {[%emt 0:00:24]} Qc6 {[%emt 0:00:18]} 39. Ka1 {[%emt 0:00:13]} Ka7 {[%emt 0:00:03]} 40. Rda2 {[%emt 0:01:02]} Rb8 {[%emt 0:02:48]} 41. Rxa4 {[%emt 0:08:05]} Qxc3+ {[%emt 0:00:00]} 42. Rb2 {[%emt 0:00:03]} Rxb2 {[%emt 0:20:52]} 43. Qxb2 {[%emt 0:00:04]} Qe1+ {[%emt 0:00:03]} 44. Ka2 {[%emt 0:00:05]} Rb8 {[%emt 0:00:17]} 45. Qc2 {[%emt 0:00:42]} Kb7 {[%emt 0:07:44]} 46. h7 {[%emt 0:01:42]} Rc8 {[%emt 0:00:04]} 47. Qb1+ {[%emt 0:01:34]} 1-0

[Event "13th Poti Nana Aleksandria Cup"]
[Site "Poti"]
[Date "2018.07.19"]
[Round "8"]
[White "Eynullayev, Altay"]
[Black "Gordon, Evgeny"]
[Result "1-0"]
[ECO "C10"]
[WhiteElo "2134"]
[BlackElo "2016"]
[Annotator "NA"]
[PlyCount "131"]
[EventDate "2018.07.13"]
[EventType "swiss"]
[EventCountry "GEO"]
[SourceTitle "playchess.com"]
[Source "ChessBase"]
[SourceQuality "1"]
[TimeControl "40/5400+30:1800+30"]

1. e4 {[%emt 0:00:00]} e6 {[%emt 0:00:00]} 2. d4 {[%emt 0:00:00]} d5 {[%emt 0:00:00]} 3. Nc3 {[%emt 0:00:00]} dxe4 {[%emt 0:00:06]} 4. Nxe4 {[%emt 0:00:00]} Bd7 {[%emt 0:00:06]} 5. Nf3 {[%emt 0:00:48]} Bc6 {[%emt 0:00:06]} 6. Bd3 {[%emt 0:01:46]} Nd7 {[%emt 0:00:06]} 7. O-O {[%emt 0:00:21]} Ngf6 {[%emt 0:00:20]} 8. Ng3 {[%emt 0:00:44]} Be7 {[%emt 0:01:13]} 9. b3 {[%emt 0:00:43]} O-O {[%emt 0:00:37]} 10. c4 {[%emt 0:01:46]} b6 {[%emt 0:01:27] C10: Französische Verteidigung (Rubinstein-Variante)} (10... Bxf3 11. Qxf3 c6 12. Bb2 Qa5 13. Rfe1 Ba3 14. Bxa3 Qxa3 15. Re2 Rfd8 16. h3 Nf8 17. Ne4 Nxe4 18. Qxe4 Qd6 19. Rd1 Rd7 20. c5 {0-1 (73) Polgar,J (2680)-Gelfand,B (2758) Moscow 2009}) 11. Bb2 {[%emt 0:00:32]} Bb7 {[%emt 0:00:39]} 12. Qe2 {[%emt 0:01:09]} c5 {[%emt 0:08:26]} 13. Rad1 {[%emt 0:02:48]} Bxf3 {[%emt 0:11:33]} 14. Qxf3 {[%emt 0:00:12]} cxd4 {[%emt 0:00:15]} 15. Bxd4 {[%emt 0:02:00]} Qc7 {[%emt 0:16:09] [#]} 16. Qe2 $146 {[%emt 0:11:53]} ({Vorgänger:} 16. Ne4 Rad8 17. Nxf6+ Bxf6 18. Qe4 {½-½ (31) Nolte,R (2522)-Gomez,J (2464) Manila 2008}) 16... Rfe8 {[%emt 0:02:14]} 17. Bb2 {[%emt 0:04:44]} Rad8 {[%emt 0:03:09]} 18. Bb1 {[%emt 0:01:07]} Nf8 {[%emt 0:05:26]} 19. Ne4 {[%emt 0:06:58]} Nxe4 $11 {[%emt 0:01:09]} 20. Qxe4 {[%emt 0:00:27]} Rxd1 {[%emt 0:00:58]} 21. Rxd1 {[%emt 0:00:08]} Rd8 {[%emt 0:00:16]} 22. Rxd8 {[%emt 0:03:58]} Qxd8 {[%emt 0:00:05]} 23. Qe2 {[%emt 0:02:06]} Bf6 {[%emt 0:03:03]} 24. Bc1 {[%emt 0:02:18]} Qd4 {[%emt 0:03:41]} 25. Be3 {[%emt 0:01:00]} Qc3 {[%emt 0:00:13]} 26. Qd3 {[%emt 0:03:04]} Qe1+ {[%emt 0:00:39]} 27. Qf1 {[%emt 0:00:02]} Qc3 {[%emt 0:00:22]} 28. Qc1 {[%emt 0:00:21]} Qxc1+ {[%emt 0:02:20]} 29. Bxc1 {[%emt 0:00:13]} Bd4 {[%emt 0:00:26]} 30. Kf1 {[%emt 0:01:08]} Nd7 {[%emt 0:05:37]} 31. Ke2 {[%emt 0:00:53]} Kf8 {[%emt 0:07:19]} 32. f3 {[%emt 0:05:12]} h6 {[%emt 0:03:35]} 33. Kd3 {[%emt 0:00:39]} Be5 {[%emt 0:00:39]} 34. f4 {[%emt 0:03:05]} Bd6 {[%emt 0:00:42]} 35. a3 {[%emt 0:01:08]} Ke7 {[%emt 0:06:42]} 36. b4 {[%emt 0:01:57]} f6 {[%emt 0:03:05]} 37. Ke4 {[%emt 0:03:21]} g6 {[%emt 0:02:52]} 38. g3 {[%emt 0:02:33]} Nb8 {[%emt 0:06:03]} 39. Be3 {[%emt 0:02:48]} Nd7 {[%emt 0:02:10]} 40. Bc2 {[%emt 0:00:00]} h5 {[%emt 0:00:00]} 41. Ba4 {[%emt 0:03:31]} Kd8 {[%emt 0:08:06]} 42. Bd4 {[%emt 0:07:15]} Be7 {[%emt 0:00:27]} 43. Bc2 {[%emt 0:02:02]} Kc7 {[%emt 0:03:00]} 44. Ke3 {[%emt 0:00:48]} Nf8 {[%emt 0:00:10]} 45. Be4 {[%emt 0:00:59]} f5 {[%emt 0:07:39]} 46. Bc2 {[%emt 0:00:22]} h4 {[%emt 0:02:01]} 47. Ba4 {[%emt 0:00:35]} hxg3 {[%emt 0:00:27]} 48. hxg3 {[%emt 0:00:01]} g5 {[%emt 0:00:23]} 49. Be8 {[%emt 0:09:09]} Kd8 {[%emt 0:01:18]} 50. Bf7 {[%emt 0:01:38]} gxf4+ {[%emt 0:08:02]} 51. gxf4 {[%emt 0:05:10]} Kd7 {[%emt 0:03:54]} 52. c5 {[%emt 0:07:09]} bxc5 {[%emt 0:02:13]} 53. Bxc5 {[%emt 0:00:07]} a6 {[%emt 0:01:09]} 54. Bxe7 {[%emt 0:10:34]} Kxe7 {[%emt 0:00:01]} 55. Bh5 {[%emt 0:00:00]} Nd7 {[%emt 0:00:49]} 56. Be2 {[%emt 0:00:05]} Nb8 {[%emt 0:00:05]} 57. b5 {[%emt 0:00:07]} axb5 {[%emt 0:00:47]} 58. Bxb5 {[%emt 0:00:06]} Kd6 {[%emt 0:01:50]} 59. Kd4 {[%emt 0:00:11]} e5+ {[%emt 0:00:10]} 60. fxe5+ {[%emt 0:00:04]} Ke6 {[%emt 0:00:31]} 61. a4 {[%emt 0:00:26]} f4 {[%emt 0:00:13]} 62. Ke4 {[%emt 0:03:51]} f3 {[%emt 0:00:07]} 63. Bc4+ {[%emt 0:00:02]} Ke7 {[%emt 0:00:14]} 64. Kxf3 {[%emt 0:00:02]} Nc6 {[%emt 0:00:09]} 65. Ke4 {[%emt 0:00:05]} Na5 {[%emt 0:00:11]} 66. Bd5 {[%emt 0:00:04]} 1-0

[Event "13th Poti Nana Aleksandria Cup"]
[Site "Poti"]
[Date "2018.07.19"]
[Round "8"]
[White "Avetisyan, Mariam"]
[Black "Vakhania, Aleksandra"]
[Result "1-0"]
[ECO "D10"]
[WhiteElo "2051"]
[BlackElo "2182"]
[Annotator "NA"]
[PlyCount "113"]
[EventDate "2018.07.13"]
[EventType "swiss"]
[EventCountry "GEO"]
[SourceTitle "playchess.com"]
[Source "ChessBase"]
[SourceQuality "1"]
[TimeControl "40/5400+30:1800+30"]

1. d4 {[%emt 0:00:00]} d5 {[%emt 0:00:10]} 2. c4 {[%emt 0:00:00]} c6 {[%emt 0:00:04]} 3. cxd5 {[%emt 0:00:00]} cxd5 {[%emt 0:00:06]} 4. Bf4 {[%emt 0:00:00]} Nc6 {[%emt 0:00:40]} 5. Nc3 {[%emt 0:00:00]} Nf6 {[%emt 0:00:23]} 6. e3 {[%emt 0:00:00]} e6 {[%emt 0:00:09]} 7. Bd3 {[%emt 0:01:07]} Bd6 {[%emt 0:01:23]} 8. Bxd6 {[%emt 0:00:08]} Qxd6 {[%emt 0:00:05]} 9. f4 {[%emt 0:00:03]} h6 {[%emt 0:03:30]} 10. Nf3 {[%emt 0:09:39]} g5 {[%emt 0:00:57]} 11. fxg5 {[%emt 0:09:18]} hxg5 {[%emt 0:00:10]} 12. Nb5 {[%emt 0:00:35]} Qe7 {[%emt 0:12:55]} 13. Ne5 {[%emt 0:14:08]} Kf8 $18 {[%emt 0:14:19]} (13... a6 $11 14. Qa4 Kf8) 14. O-O {[%emt 0:16:15]} Kg7 {[%emt 0:19:11]} 15. Qf3 {[%emt 0:03:35]} Rh6 {[%emt 0:02:55]} 16. Qg3 {[%emt 0:03:14]} Rh5 {[%emt 0:24:16]} 17. Nxc6 {[%emt 0:08:25]} bxc6 {[%emt 0:00:16]} 18. Nc7 {[%emt 0:00:15]} Bb7 {[%emt 0:05:37]} 19. Nxa8 {[%emt 0:00:07]} Bxa8 {[%emt 0:00:05]} 20. Qb8 {[%emt 0:07:13]} Bb7 {[%emt 0:04:36]} 21. Rf3 {[%emt 0:01:38]} g4 {[%emt 0:02:16]} 22. Rf2 {[%emt 0:06:00]} Ne8 {[%emt 0:01:13]} 23. Raf1 {[%emt 0:00:23]} Nd6 {[%emt 0:00:23]} 24. g3 {[%emt 0:01:33]} f5 {[%emt 0:02:45]} 25. Qxa7 {[%emt 0:00:53]} Rh8 {[%emt 0:01:14]} 26. Qc5 {[%emt 0:01:06]} Qd7 {[%emt 0:01:55]} 27. a4 {[%emt 0:00:13]} Nf7 {[%emt 0:00:08]} 28. Kh1 {[%emt 0:11:19]} Ra8 {[%emt 0:00:38]} 29. a5 {[%emt 0:01:51]} Ba6 {[%emt 0:00:15]} 30. Bxa6 {[%emt 0:00:17]} Rxa6 {[%emt 0:00:05]} 31. b4 {[%emt 0:00:12]} Nd6 {[%emt 0:00:48]} 32. Rf4 {[%emt 0:00:18]} Ra8 {[%emt 0:00:58]} 33. Rc1 {[%emt 0:00:32]} Ra6 {[%emt 0:00:10]} 34. Kg2 {[%emt 0:01:54]} Nf7 {[%emt 0:00:28]} 35. Rh1 {[%emt 0:01:42]} Ng5 {[%emt 0:00:49]} 36. Rb1 {[%emt 0:00:27]} Ra8 {[%emt 0:01:23]} 37. b5 {[%emt 0:00:46]} cxb5 {[%emt 0:00:25]} 38. Qxb5 {[%emt 0:00:03]} Qd8 {[%emt 0:00:18]} 39. Qb6 {[%emt 0:00:34]} Qh8 {[%emt 0:00:23]} 40. Qc7+ {[%emt 0:00:00]} Kg6 {[%emt 0:00:00]} 41. Rf2 {[%emt 0:07:44]} Rc8 {[%emt 0:06:25]} 42. Qe5 {[%emt 0:02:10]} Qh5 {[%emt 0:08:52]} 43. a6 {[%emt 0:04:29]} Rc6 {[%emt 0:03:06]} 44. a7 {[%emt 0:04:36]} Nf3 {[%emt 0:00:32]} 45. Kh1 {[%emt 0:01:19]} Nxe5 {[%emt 0:02:34]} 46. a8=Q {[%emt 0:00:08]} Nd3 {[%emt 0:00:31]} 47. Rd2 {[%emt 0:02:29]} Rc3 {[%emt 0:03:07]} 48. Qa5 {[%emt 0:03:39]} Nf2+ {[%emt 0:05:13]} 49. Rxf2 {[%emt 0:00:06]} Rxe3 {[%emt 0:00:03]} 50. Re1 {[%emt 0:04:43]} Qg5 {[%emt 0:00:46]} 51. Rf4 {[%emt 0:02:36]} Re4 {[%emt 0:00:31]} 52. Rexe4 {[%emt 0:01:20]} dxe4 {[%emt 0:00:22]} 53. Qe5 {[%emt 0:00:20]} Qe7 {[%emt 0:02:18]} 54. d5 {[%emt 0:00:26]} e3 {[%emt 0:00:12]} 55. Qxe3 {[%emt 0:00:08]} e5 {[%emt 0:00:17]} 56. Qb6+ {[%emt 0:01:51]} Kg5 {[%emt 0:00:50]} 57. Qe6 {[%emt 0:00:36]} 1-0